bitfinex/quotes_ETHUSD_20250214
["timestamp","ask_amount","ask_price","bid_price","bid_amount"]
[1739546105332,0.8106,2706.8,2706.2,3.69514]
[1739546105486,0.8106,2707.1,2706.5,3.69474]
[1739546105687,3.69338,2707.6,2706.9,8.10134097]
[1739546105887,3.69323,2707.7,2707.1,3.69393]
[1739546106143,3.69323,2707.7,2706.9,4.40713097]
[1739546106144,3.69332,2707.6,2707.0,3.69412]
[1739546106320,3.69332,2707.6,2707.0,3.69404]
[1739546106501,3.69332,2707.6,2707.0,4.8735921]
[1739546106706,3.69332,2707.6,2707.1,3.69396]
[1739546107007,3.69332,2707.6,2707.0,8.5676221]
[1739546107208,3.69394,2707.2,2706.7,0.7998]
[1739546107409,0.7946,2707.4,2706.7,0.7998]
[1739546107656,0.7946,2707.7,2706.9,4.40713097]
[1739546107836,3.69335,2707.6,2707.0,3.69399]
[1739546108001,3.69399,2707.1,2706.4,3.69484]
[1739546108199,0.03689922,2707.5,2706.3,5.20693097]
[1739546108200,3.69443,2706.8,2706.3,5.20693097]
[1739546108425,7.38892,2706.8,2706.3,0.7998]
[1739546108596,3.69443,2706.8,2706.3,0.7998]
[1739546108801,3.69467,2706.6,2706.0,8.90236097]
[1739546109039,3.69467,2706.6,2706.0,5.20693097]
[1739546109198,3.69467,2706.6,2705.6,11.75]
[1739546109199,0.03689922,2706.6,2705.7,4.40713097]
[1739546109400,0.7946,2706.5,2705.3,0.7998]
[1739546109605,3.69589,2705.8,2705.3,0.7998]
[1739546109806,4.49049,2705.8,2705.0,4.49654]
[1739546110158,4.49045,2705.8,2705.1,3.6967]
[1739546110396,4.49045,2705.8,2705.2,4.515864]
[1739546110537,0.7946,2705.8,2705.3,3.69635]
[1739546110894,4.49049,2705.8,2705.1,3.69663]
[1739546111051,3.69612,2705.6,2705.0,4.49663]
[1739546111258,0.7946,2705.8,2705.0,0.7998]
[1739546111455,0.03689922,2705.7,2704.5,0.7998]
[1739546111673,0.7946,2705.8,2704.5,0.7998]
[1739546111674,3.69695,2705.0,2704.5,1.73055091]
[1739546111859,0.03689922,2705.1,2704.6,3.6974]
[1739546112063,3.69683,2705.1,2704.5,0.7998]
[1739546112268,7.39366,2705.1,2704.5,0.7998]
[1739546112477,3.69683,2705.1,2704.5,0.7998]
[1739546112684,3.69683,2705.1,2704.5,1.249538]
[1739546112901,3.69622,2705.5,2704.7,3.69722]
[1739546113058,3.69659,2705.2,2704.7,3.69722]
[1739546113268,3.69659,2705.2,2704.6,3.69729]
[1739546113595,3.6974,2704.6,2704.1,0.7998]
[1739546113795,3.0,2705.7,2704.1,0.7998]
[1739546113796,3.69717,2704.8,2704.1,0.7998]
[1739546114047,7.39441,2704.8,2704.1,4.49779]
[1739546114352,3.6974,2704.6,2703.7,4.49834]
[1739546114555,3.69765,2704.5,2703.9,3.69835]
[1739546114736,3.69765,2704.5,2704.0,0.369835]
[1739546114890,3.69777,2704.4,2703.7,0.7998]
[1739546115086,3.69795,2704.2,2703.7,0.7998]
[1739546115329,0.7946,2704.2,2703.3,0.7998]
[1739546115649,3.69858,2703.8,2703.3,0.7998]
[1739546115852,3.69858,2703.8,2703.3,0.819845]
[1739546116011,0.03689922,2703.9,2703.0,0.7998]
[1739546116212,3.69894,2703.5,2702.8,3.69974]
[1739546116564,0.7946,2704.2,2703.0,3.69957]
[1739546116565,5.2370124,2704.2,2703.0,3.69957]
[1739546116697,3.69891,2703.5,2702.8,3.69977]
[1739546117046,3.69915,2703.4,2702.8,3.69977]
[1739546117261,0.7946,2703.6,2703.1,3.69937]
[1739546117550,3.69898,2703.5,2702.9,0.449957]
[1739546117689,4.49342,2703.6,2702.7,0.7998]
[1739546117889,4.49342,2703.6,2702.9,3.69961]
[1739546118091,3.69893,2703.5,2702.9,3.6996]
[1739546118335,4.49342,2703.6,2702.9,3.6996]
[1739546118532,3.69906,2703.4,2703.0,0.36996]
[1739546118768,0.7946,2702.9,2702.5,0.1489231]
[1739546119093,4.49434,2702.9,2702.5,0.1489231]
[1739546119713,0.7946,2702.9,2702.5,0.1489231]
[1739546120111,0.7946,2703.3,2702.7,3.7]
[1739546120312,3.69946,2703.1,2702.5,3.8490931]
[1739546120543,4.49387,2703.3,2702.6,3.70005]
[1739546120758,3.69943,2703.2,2702.6,3.70004]
[1739546121064,3.69884,2703.6,2702.9,3.69972]
[1739546121197,3.69933,2703.2,2702.6,3.70004]
[1739546121397,0.70221922,2703.6,2702.6,0.46839004]
[1739546121618,0.7912,2703.0,2702.5,0.1489231]
[1739546121818,3.69982,2702.9,2702.5,0.1489231]
[1739546122020,0.7912,2703.0,2702.5,0.1489231]
[1739546122021,0.03689922,2702.8,2702.5,0.1489231]
[1739546122277,3.70014,2702.6,2702.5,3.1e-06]
[1739546122491,4.49134,2702.6,2702.5,3.1e-06]
[1739546122774,7.49188,2702.2,2702.1,3.1e-06]
[1739546122985,3.70245,2701.0,2700.3,4.80998906]
[1739546123134,3.73826922,2701.7,2700.5,3.70301]
[1739546123335,3.73826922,2701.7,2700.3,4.80998906]
[1739546123336,0.03689922,2701.7,2700.3,4.80998906]
[1739546123579,0.7912,2701.8,2700.3,4.80998906]
[1739546123787,0.7912,2701.8,2700.5,3.70301]
[1739546123929,0.7912,2701.8,2701.5,3.70164]
[1739546124118,0.7912,2701.8,2701.1,3.70214]
[1739546124119,0.7912,2702.4,2701.4,0.8281]
[1739546124316,3.70065,2702.3,2701.4,0.8281]
[1739546124559,3.70065,2702.3,2701.6,3.7015]
[1739546124876,3.70065,2702.3,2701.7,3.70137]
[1739546125184,0.7912,2702.8,2702.6,3.70013]
[1739546125453,0.7912,2703.2,2702.4,3.70031]
[1739546125625,0.03689922,2703.1,2702.4,3.70031]
[1739546125801,3.69872,2703.7,2702.9,3.69965]
[1739546126120,4.48915,2704.2,2702.3,4.84698352]
[1739546126121,0.7912,2703.4,2702.3,3.70051]
[1739546126324,3.69976,2702.9,2702.3,3.70051]
[1739546126531,3.69948,2703.1,2702.3,3.70053]
[1739546126740,3.70009,2702.7,2702.1,3.70076]
[1739546127039,4.49097,2702.9,2701.7,0.740292]
[1739546127334,1.240218,2703.3,2702.0,3.70096]
[1739546127538,0.7912,2703.3,2702.1,0.85109491]
[1739546127743,3.70042,2702.4,2701.8,4.52932]
[1739546128034,3.70042,2702.4,2701.7,3.70133]
[1739546128234,3.70042,2702.4,2701.6,3.70141]
[1739546128235,3.70071,2702.2,2701.6,3.70141]
[1739546128578,3.70062,2702.3,2701.6,3.70141]
[1739546128779,0.819224,2702.3,2701.4,0.8281]
[1739546129087,3.70065,2702.3,2701.6,3.70145]
[1739546129288,3.70119,2701.9,2701.2,3.70195]
[1739546129487,3.70138,2701.7,2701.0,3.70224]
[1739546129899,0.82809922,2701.8,2700.8,3.70255]
[1739546130100,3.70201,2701.3,2700.6,3.70279]
[1739546130479,4.072211,2701.3,2700.6,3.70279]
[1739546130721,4.072211,2701.3,2700.6,3.70287]
[1739546131149,3.70171,2701.5,2700.8,3.70259]
[1739546131448,3.7021,2701.2,2700.6,3.70277]
[1739546131741,3.7021,2701.2,2700.2,5.63808906]
[1739546131742,3.70238,2701.0,2700.2,4.53141]
[1739546132041,0.7912,2701.1,2700.2,0.8281]
[1739546132247,3.70252,2700.9,2700.3,3.70329]
[1739546132384,3.70233,2701.0,2700.2,3.70332]
[1739546132592,3.70249,2700.9,2700.3,3.70319]
[1739546132825,3.70233,2701.0,2700.4,3.70314]
[1739546133140,0.7912,2701.1,2700.6,3.70283]
[1739546133343,0.7912,2701.1,2700.5,0.03702711]
[1739546133550,0.73620994,2701.7,2700.5,3.70289]
[1739546133551,3.70208,2701.2,2700.5,3.70289]
[1739546133841,3.70233,2701.0,2700.3,3.70317]
[1739546134257,3.70262,2700.8,2700.1,3.70345]
[1739546134404,3.70247,2700.9,2700.1,3.70345]
[1739546134606,3.70247,2700.9,2700.5,3.70292]
[1739546134607,0.370247,2700.9,2700.5,3.70292]
[1739546135234,0.370247,2700.9,2700.1,3.7035]
[1739546135387,3.70312,2700.5,2699.9,3.7038]
[1739546135587,3.70352,2700.2,2699.8,0.1489231]
[1739546135847,3.70378,2700.0,2699.8,0.1489231]
[1739546136046,0.03689922,2700.1,2699.8,0.1489231]
[1739546136587,0.8253,2700.2,2699.8,0.1489231]
[1739546136830,1.278163,2700.2,2699.8,0.1489231]
[1739546137009,0.8253,2700.2,2699.8,3.8528031]
[1739546137241,0.8253,2700.2,2699.8,0.1489231]
[1739546137400,3.70364,2700.1,2699.8,0.1489231]
[1739546137617,3.70384,2699.9,2699.8,0.1489231]
[1739546137797,8.269892,2699.9,2699.8,3.1e-06]
[1739546137995,4.52996,2699.3,2699.2,0.825]
[1739546138198,4.56685922,2699.3,2699.2,0.825]
[1739546138954,4.52996,2699.3,2699.2,0.825]
[1739546139488,0.8253,2699.3,2699.2,0.825]
[1739546140049,7.982943,2699.3,2699.2,0.825]
[1739546140261,0.8253,2698.6,2698.5,0.00177671]
[1739546140687,4.53092,2698.6,2698.5,0.00177671]
[1739546140878,0.8253,2698.6,2698.5,0.00177671]
[1739546141097,0.86219922,2698.6,2698.5,0.00177671]
[1739546141223,0.8253,2699.1,2698.5,3.70747671]
[1739546141590,3.70448,2699.5,2698.8,3.70533]
[1739546141744,3.7044,2699.5,2698.8,3.70533]
[1739546141926,0.8253,2699.6,2698.5,0.00177671]
[1739546142140,3.70502,2699.1,2698.5,0.00177671]
[1739546142326,3.70525,2698.9,2698.6,0.00177132]
[1739546142526,0.8253,2698.8,2698.6,0.00177132]
[1739546142727,3.74237922,2698.7,2698.6,0.00177132]
[1739546143164,3.70548,2698.7,2698.6,0.00177132]
[1739546143792,0.8253,2698.8,2698.6,0.00177132]
[1739546144151,4.53066,2698.8,2698.6,0.00177132]
[1739546144355,3.74237922,2698.7,2698.6,0.00177132]
[1739546144558,3.70548,2698.7,2698.6,0.00177132]
[1739546144955,3.70494,2699.1,2698.6,0.00177132]
[1739546145161,0.8253,2699.2,2698.8,3.70524]
[1739546145440,3.70496,2699.1,2698.6,0.00177132]
[1739546145691,0.8253,2699.2,2698.6,0.45503545]
[1739546145888,3.70468,2699.3,2698.7,3.70538]
[1739546146165,3.70462,2699.4,2698.7,3.70538]
[1739546146371,0.8253,2699.5,2699.0,3.70498]
[1739546146571,3.70406,2699.8,2699.2,3.70475]
[1739546146841,3.70438,2699.5,2699.0,3.70498]
[1739546147079,3.70466,2699.3,2698.6,0.00177132]
[1739546147250,0.8253,2699.6,2699.0,3.70506]
[1739546147456,3.70468,2699.3,2698.6,3.70728132]
[1739546147953,0.03689922,2699.2,2698.6,0.00177132]
[1739546148155,3.70504,2699.1,2698.6,0.00177132]
[1739546148350,7.4101,2699.1,2698.6,0.00177132]
[1739546148567,3.70504,2699.1,2698.6,0.00177132]
[1739546148755,3.70502,2699.1,2698.6,0.00177132]
[1739546148951,4.075522,2699.1,2698.6,0.00177132]
[1739546149243,3.7053,2698.9,2698.6,0.00177132]
[1739546149590,3.7047,2699.3,2698.7,3.70537]
[1739546149792,9.57513,2699.7,2699.1,3.70486]
[1739546149948,5.871,2699.7,2699.1,3.70485]
[1739546150465,5.871,2699.7,2699.3,3.70458]
[1739546150806,3.70456,2699.4,2698.9,3.70519]
[1739546151107,3.70435,2699.6,2699.0,3.70505]
[1739546151283,3.70463,2699.4,2698.8,3.70532]
[1739546151583,3.70438,2699.5,2698.9,3.70521]
[1739546151784,3.70438,2699.5,2699.0,3.70504]
[1739546152018,9.57518,2699.7,2698.7,0.789]
[1739546152019,5.871,2699.7,2699.1,3.70484]
[1739546152173,5.871,2699.7,2699.2,3.7047]
[1739546152371,5.871,2699.7,2699.1,3.70484]
[1739546152614,3.70448,2699.5,2698.9,7.41027]
[1739546152914,3.70437,2699.6,2698.9,7.41023]
[1739546153214,3.7044,2699.5,2698.9,7.41023]
[1739546153411,3.7044,2699.5,2698.9,3.7051]
[1739546153770,9.57521,2699.7,2698.7,0.789]
[1739546153970,3.70425,2699.6,2699.0,3.70499]
[1739546154217,5.871,2699.7,2698.7,0.789]
[1739546154609,5.871,2699.7,2699.2,3.70471]
[1739546154815,5.871,2699.7,2699.3,3.70455]
[1739546154975,5.871,2699.7,2699.2,3.70473]
[1739546155171,3.70425,2699.6,2698.7,0.789]
[1739546155499,5.871,2699.7,2699.3,3.70457]
[1739546155823,5.871,2699.7,2699.4,3.70443]
[1739546156004,5.871,2699.7,2699.6,3.70425]
[1739546156190,3.70315,2700.4,2699.8,3.70392]
[1739546156524,4.53561,2700.5,2699.9,3.70376]
[1739546156886,0.8325,2700.5,2700.0,3.7036]
[1739546157068,4.53558,2700.5,2699.4,10.03916906]
[1739546157269,5.359421,2700.5,2699.9,3.70382]
[1739546157470,0.8325,2700.9,2700.0,0.03703452]
[1739546157707,3.70261,2700.8,2700.3,3.70328]
[1739546158102,3.70282,2700.7,2699.9,3.70377]
[1739546158402,3.70282,2700.7,2700.0,3.70363]
[1739546158602,3.70303,2700.5,2700.0,7.40726]
[1739546158820,3.70282,2700.7,2699.8,4.4877]
[1739546158821,3.7033,2700.3,2699.8,4.4877]
[1739546159005,7.859172,2700.7,2699.9,3.70373]
[1739546159323,0.8325,2700.9,2700.3,3.70328]
[1739546159477,0.8325,2700.9,2700.5,3.70297]
[1739546159675,0.8325,2700.9,2700.3,3.70322]
[1739546159676,0.8325,2700.9,2700.4,3.70312]
[1739546159916,0.8325,2700.9,2700.3,3.70321]
[1739546160241,3.70299,2700.6,2699.9,3.70374]
[1739546160538,3.70316,2700.4,2699.8,3.70385]
[1739546160713,3.70316,2700.4,2699.5,4.78771691]
[1739546160896,0.453491,2700.8,2699.5,4.78771691]
[1739546161076,0.8325,2700.9,2699.8,3.70387]
[1739546161077,4.53505,2700.9,2699.8,3.70387]
[1739546161277,4.53505,2700.9,2700.3,3.70322]
[1739546161474,3.70288,2700.6,2699.9,3.70384]
[1739546161739,3.70242,2701.0,2699.8,0.7913]
[1739546161878,3.70221,2701.1,2700.4,3.7031]
[1739546162082,5.875,2701.2,2700.2,0.7838]
[1739546162280,5.875,2701.2,2700.8,3.70254]
[1739546162554,5.875,2701.2,2700.3,3.70329]
[1739546162555,9.57712,2701.2,2700.7,3.70262]
[1739546162842,5.875,2701.2,2700.4,3.70315]
[1739546163051,6.4625,2701.2,2700.4,3.70305]
[1739546163341,6.4625,2701.2,2700.7,3.70273]
[1739546163539,0.8325,2701.1,2700.2,0.7838]
[1739546163682,3.4537,2700.0,2699.4,5.59378906]
[1739546163878,0.86939922,2700.3,2699.4,0.7838]
[1739546164192,1.28974492,2700.3,2699.6,3.70419]
[1739546164380,3.7028,2700.7,2699.9,3.70374]
[1739546164381,3.70307,2700.5,2699.9,3.70374]
[1739546164580,3.70343,2700.2,2699.6,3.70417]
[1739546164908,3.70297,2700.6,2700.0,3.7036]
[1739546165082,4.53525,2700.7,2700.0,3.7036]
[1739546165434,4.53525,2700.7,2700.3,3.70326]
[1739546165435,0.8325,2700.7,2700.3,3.70326]
[1739546165585,0.8325,2700.7,2700.3,7.40647]
[1739546165941,0.8325,2700.7,2700.3,3.70321]
[1739546166303,0.8325,2700.7,2699.8,4.48777]
[1739546166304,0.8084,2700.6,2700.1,3.70346]
[1739546166995,0.8084,2700.6,2699.9,3.70375]
[1739546166996,3.70309,2700.5,2699.9,3.70375]
[1739546167181,1.259514,2700.6,2699.9,7.40751]
[1739546167383,0.03689922,2700.5,2699.0,4.80998906]
[1739546167615,0.8084,2700.0,2699.4,3.70441]
[1739546168214,0.8084,2700.0,2699.6,3.70413]
[1739546168588,0.8084,2700.3,2699.9,3.70376]
[1739546168784,0.8084,2700.3,2699.2,0.59453904]
[1739546168785,0.8084,2700.6,2700.0,3.70366]
[1739546169104,0.8084,2700.9,2700.4,3.70304]
[1739546169414,5.875,2701.2,2700.7,3.70271]
[1739546169619,9.57705,2701.2,2700.7,3.70271]
[1739546169778,0.8084,2701.3,2700.3,0.7696]
[1739546169983,0.8084,2701.3,2700.4,0.03702605]
[1739546170224,0.8084,2702.0,2701.0,3.70223]
[1739546170430,3.70174,2701.5,2700.8,3.70252]
[1739546170720,0.84529922,2701.4,2700.4,0.7696]
[1739546170877,0.03689922,2701.3,2700.5,3.70301]
[1739546171199,0.8084,2701.2,2699.9,0.7696]
[1739546171331,0.8084,2701.2,2700.0,3.74068571]
[1739546171672,0.8084,2701.2,2700.7,3.70261]
[1739546171974,0.8084,2701.9,2701.0,3.7022]
[1739546172279,3.70145,2701.7,2701.2,3.70201]
[1739546172433,3.70123,2701.8,2701.2,3.70196]
[1739546172780,4.50957,2701.9,2701.3,3.70183]
[1739546172930,3.70159,2701.6,2700.6,5.63308906]
[1739546173136,4.50959,2701.9,2701.3,3.70178]
[1739546173331,3.70145,2701.7,2701.1,3.70219]
[1739546173551,4.50954,2701.9,2701.1,3.7021]
[1739546173874,4.50954,2701.9,2700.7,4.26597891]
[1739546173875,4.50954,2701.9,2701.3,7.40372]
[1739546174046,4.50954,2701.9,2700.7,7.40535]
[1739546174047,3.7018,2701.4,2700.7,7.40535]
[1739546174267,0.7613,2701.2,2700.7,3.70264]
[1739546174467,0.7613,2701.5,2700.6,0.8231]
[1739546174667,0.7613,2701.5,2700.7,0.03702169]
[1739546174865,0.336,2702.5,2700.9,3.70246]
[1739546175066,0.7613,2702.2,2701.9,3.70109]
[1739546175283,4.03637,2702.5,2702.0,3.70094]
[1739546175284,3.70037,2702.5,2702.0,3.70094]
[1739546175483,3.7003,2702.5,2702.0,3.70084]
[1739546175779,0.44616,2702.5,2701.7,4.52446]
[1739546175978,0.7613,2702.6,2701.5,3.70156]
[1739546175979,3.70055,2702.3,2701.5,3.70156]
[1739546176179,3.70055,2702.3,2701.7,3.70132]
[1739546176386,0.7613,2702.6,2702.1,3.70077]
[1739546176680,3.70031,2702.5,2701.9,7.40203]
[1739546176885,3.70056,2702.3,2701.7,3.70129]
[1739546177179,0.7613,2702.6,2701.9,3.70109]
[1739546177348,0.7613,2702.6,2702.1,3.70073]
[1739546177709,0.7613,2702.6,2702.3,3.70043]
[1739546177907,5.874,2702.8,2702.3,3.70043]
[1739546178046,9.57391,2702.8,2702.2,3.70063]
[1739546178382,9.57391,2702.8,2702.1,4.52386]
[1739546178383,3.70035,2702.5,2701.8,3.7011]
[1739546178581,3.70035,2702.5,2701.6,0.8231]
[1739546178582,0.03689922,2702.4,2701.6,0.8231]
[1739546178766,0.03689922,2702.4,2700.8,4.26958108]
[1739546178767,0.79819922,2702.4,2701.3,0.8231]
[1739546178969,0.7613,2702.4,2702.0,3.70093]
[1739546179139,1.28182579,2702.4,2701.8,3.70111]
[1739546179337,1.31872501,2702.4,2701.8,3.70111]
[1739546179553,3.701,2702.0,2701.4,3.70171]
[1739546179758,3.701,2702.0,2701.4,3.70169]
[1739546180048,0.7613,2702.2,2701.0,5.63308906]
[1739546180257,3.70118,2701.9,2701.3,3.70188]
[1739546180497,3.73816922,2701.8,2701.1,3.70216]
[1739546180657,3.70158,2701.6,2701.1,3.70212]
[1739546180868,3.70144,2701.7,2701.1,3.70212]
[1739546181164,3.70144,2701.7,2700.9,3.70238]
[1739546181165,3.70199,2701.3,2700.7,4.48836]
[1739546181376,3.70223,2701.1,2700.5,3.7029]
[1739546181539,3.70223,2701.1,2700.3,4.48892]
[1739546181540,3.7025,2700.9,2700.4,3.70315]
[1739546181739,3.70268,2700.8,2700.2,3.7034]
[1739546181959,0.8062,2700.9,2700.5,3.70288]
[1739546182164,0.8062,2700.9,2700.4,3.70304]
[1739546182419,3.70221,2701.1,2700.3,3.70319]
[1739546182420,0.8062,2701.3,2700.8,3.70249]
[1739546182560,0.19281006,2702.2,2700.3,8.13002817]
[1739546182561,1.509816,2701.7,2700.6,4.42679817]
[1739546182904,7.40372,2701.4,2700.8,3.70256]
[1739546183221,0.8062,2701.7,2700.9,0.03702354]
[1739546183408,0.8062,2701.7,2701.3,3.70181]
[1739546183611,3.70151,2701.6,2700.6,5.21249817]
[1739546183912,3.70178,2701.4,2700.4,0.370319]
[1739546184066,3.70244,2701.0,2700.3,4.48888]
[1739546184265,0.8062,2700.9,2700.4,3.70313]
[1739546184703,4.50867,2700.9,2700.3,3.70318]
[1739546184873,0.8062,2700.9,2700.6,3.70285]
[1739546185206,3.70187,2701.4,2700.3,3.70329]
[1739546185419,4.50808,2701.4,2700.6,3.70288]
[1739546185716,4.50808,2701.4,2700.8,3.70259]
[1739546185961,3.70241,2701.0,2700.0,4.48933]
[1739546186141,3.70241,2701.0,2700.3,3.70326]
[1739546186142,3.70264,2700.8,2700.3,3.70326]
[1739546186454,0.8062,2701.4,2700.2,0.0075]
[1739546186639,3.70159,2701.6,2700.9,3.7024]
[1739546186822,0.8062,2701.7,2701.1,3.70219]
[1739546187027,0.8062,2701.7,2700.9,3.70238]
[1739546187243,3.70174,2701.5,2700.9,3.70237]
[1739546187610,3.70214,2701.2,2700.7,3.70264]
[1739546188225,3.70199,2701.3,2700.7,7.4053]
[1739546188421,3.70199,2701.3,2700.7,3.70264]
[1739546188657,3.70185,2701.4,2700.8,3.70253]
[1739546188870,3.70153,2701.6,2700.9,3.70239]
[1739546189009,0.8062,2701.7,2701.0,3.70233]
[1739546189513,0.8062,2701.7,2700.9,0.7857]
[1739546189728,0.8062,2701.7,2701.0,3.70227]
[1739546190054,3.70161,2701.6,2701.0,3.70226]
[1739546190259,3.70161,2701.6,2701.1,3.70219]
[1739546190627,3.70161,2701.6,2700.4,0.7857]
[1739546190628,3.70228,2701.1,2700.4,0.7857]
[1739546190828,0.8062,2701.1,2700.4,0.7857]
[1739546191248,4.50804,2701.4,2700.8,3.70252]
[1739546191420,4.50804,2701.4,2700.9,3.70246]
[1739546191818,0.8062,2701.4,2700.7,3.70271]
[1739546192011,0.8062,2701.4,2700.9,3.70238]
[1739546192242,0.8062,2701.4,2700.4,4.48882]
[1739546192243,0.8062,2701.4,2700.5,3.73998402]
[1739546192556,4.50743,2701.8,2701.2,3.70196]
[1739546192762,4.50743,2701.8,2701.3,3.70189]
[1739546193060,0.8062,2701.8,2701.1,0.7858]
[1739546193216,4.4529,2702.2,2701.6,3.7015]
[1739546193418,3.70084,2702.1,2701.4,3.70169]
[1739546193760,0.7521,2701.9,2701.0,3.70233]
[1739546193932,3.7013,2701.8,2701.3,3.70182]
[1739546194134,4.45322,2701.9,2701.4,3.70165]
[1739546194338,4.45322,2701.9,2700.7,5.61147154]
[1739546194339,3.70151,2701.6,2701.1,3.7021]
[1739546194531,0.03689922,2701.8,2700.7,5.61147154]
[1739546194532,3.70194,2701.3,2700.7,4.48845]
[1739546194860,3.70173,2701.5,2700.9,3.70237]
[1739546195063,4.45325,2701.9,2700.9,0.85609814]
[1739546195360,0.7521,2701.9,2701.0,3.70233]
[1739546195532,0.8135,2702.3,2701.2,0.7955]
[1739546195731,0.8135,2702.3,2701.9,3.70108]
[1739546196050,0.8135,2702.3,2701.9,3.70101]
[1739546196359,5.871,2702.4,2702.1,7.4015]
[1739546196561,5.871,2702.4,2702.1,3.70075]
[1739546196970,5.871,2702.4,2701.9,4.8626765]
[1739546197169,5.871,2702.4,2702.3,3.70055]
[1739546197661,0.8135,2703.7,2702.5,0.7955]
[1739546197849,0.8135,2703.7,2703.2,3.69919]
[1739546198046,0.451208,2703.6,2702.8,0.03699287]
[1739546198252,3.6983,2704.0,2703.3,3.6991]
[1739546198432,3.6983,2704.0,2703.2,0.7955]
[1739546198760,3.69857,2703.8,2703.2,4.4948]
[1739546198963,3.6983,2704.0,2703.3,3.69913]
[1739546199186,0.45118,2703.9,2703.5,3.69887]
[1739546199964,3.69831,2704.0,2703.3,7.39819]
[1739546200162,0.03689922,2703.9,2702.9,0.7955]
[1739546200465,4.51315,2703.0,2702.0,0.7955]
[1739546200828,4.51315,2703.0,2702.3,3.70046]
[1739546201038,4.51315,2703.0,2701.8,4.82567154]
[1739546201039,3.70027,2702.6,2701.9,3.70109]
[1739546201232,3.69999,2702.8,2702.1,3.70072]
[1739546201233,3.69991,2702.8,2702.1,3.70072]
[1739546201483,0.451315,2702.9,2701.7,0.7955]
[1739546201484,3.70041,2702.4,2701.7,4.49674]
[1739546201633,4.151105,2702.9,2701.0,8.75]
[1739546201634,0.8135,2702.3,2701.0,8.52795154]
[1739546201837,1.264888,2702.3,2701.8,3.7011]
[1739546202047,1.264888,2702.3,2701.6,3.70147]
[1739546202241,3.7009,2702.1,2701.4,3.70172]
[1739546202463,4.965478,2702.3,2701.7,3.70125]
[1739546202662,1.264888,2702.3,2701.9,3.70103]
[1739546202847,1.264888,2702.3,2701.5,3.7016]
[1739546203051,3.70107,2702.0,2701.3,3.70181]
[1739546203479,3.70086,2702.1,2701.3,3.70181]
[1739546203737,0.8135,2702.3,2701.4,0.03701519]
[1739546203954,3.70001,2702.7,2702.1,3.70081]
[1739546204158,3.7003,2702.5,2701.9,3.70109]
[1739546204600,4.51376,2702.6,2701.6,0.7955]
[1739546204601,0.8135,2702.6,2702.1,3.70073]
[1739546204800,0.8135,2702.6,2702.0,3.70095]
[1739546204936,0.8135,2702.6,2701.6,0.7955]
[1739546205135,4.1887191,2702.5,2701.9,3.70099]
[1739546205370,0.8135,2702.6,2702.1,3.70081]
[1739546205638,0.8135,2702.9,2702.5,3.70027]
[1739546205848,0.8135,2703.2,2702.6,3.70005]
[1739546206037,0.8135,2703.2,2702.7,3.69987]
[1739546206290,1.264774,2703.2,2702.7,3.69987]
[1739546206435,4.964124,2703.2,2702.6,3.70005]
[1739546206868,1.264774,2703.2,2702.6,3.70005]
[1739546207291,4.51228,2703.6,2702.9,3.69959]
[1739546207476,4.51227,2703.6,2703.1,3.69935]
[1739546207640,4.51227,2703.6,2702.9,3.69968]
[1739546207980,4.51227,2703.6,2702.7,4.49543]
[1739546207981,0.8135,2703.6,2703.1,3.69936]
[1739546208150,1.634561,2703.6,2703.1,3.69934]
[1739546208397,3.69801,2704.2,2703.0,0.7955]
[1739546208555,3.69801,2704.2,2703.6,3.69874]
[1739546208753,3.69801,2704.2,2703.5,3.69881]
[1739546209068,3.6981,2704.1,2703.5,3.69878]
[1739546209275,3.69795,2704.2,2703.5,3.69878]
[1739546209595,0.451145,2704.1,2703.7,3.69862]
[1739546209756,0.451145,2704.1,2703.8,3.69848]
[1739546210102,4.51131,2704.3,2703.7,7.39716]
[1739546210299,0.8135,2704.3,2703.7,3.69854]
[1739546210500,4.51134,2704.3,2703.6,3.69865]
[1739546210788,5.871,2704.5,2704.1,3.69801]
[1739546210971,6.6532,2704.5,2703.9,3.69827]
[1739546211155,3.69791,2704.3,2703.4,4.82567154]
[1739546211482,3.69795,2704.2,2703.5,3.69882]
[1739546211635,0.66532,2704.4,2703.7,3.69856]
[1739546211836,10.35081,2704.5,2703.9,3.69835]
[1739546212067,10.35081,2704.5,2703.7,3.69855]
[1739546212284,10.35081,2704.5,2703.4,4.82567154]
[1739546212285,10.3508,2704.5,2703.4,4.82567154]
[1739546212587,0.55,2704.0,2703.9,3.69836]
[1739546213080,0.55,2704.0,2703.8,3.69841]
[1739546213279,0.55,2704.0,2703.9,3.69836]
[1739546214553,0.55,2704.0,2703.9,4.51166]
[1739546216390,0.7822,2705.2,2704.7,3.69718]
[1739546216551,1.599709,2705.2,2704.7,3.69717]
[1739546216743,0.7822,2705.2,2704.7,3.69717]
[1739546216939,4.47878,2705.2,2704.7,3.69717]
[1739546217303,3.69699,2704.9,2704.1,3.69807]
[1739546217460,3.69699,2704.9,2704.3,3.69771]
[1739546217664,3.69686,2705.0,2704.3,3.69771]
[1739546217899,3.69727,2704.7,2704.1,3.69796]
[1739546218101,0.817584,2705.0,2704.1,3.69796]
[1739546218299,3.6972,2704.8,2703.9,0.8133]
[1739546218447,3.6972,2704.8,2704.2,3.69785]
[1739546218653,3.6972,2704.8,2703.9,0.8133]
[1739546218859,3.6972,2704.8,2704.1,3.69795]
[1739546219062,0.739412,2704.8,2704.0,3.69822]
[1739546219301,3.69722,2704.8,2704.2,3.69788]
[1739546220055,0.7822,2704.7,2704.0,3.69814]